bitfinex-derivatives/quotes_ETHF0:USTF0_20250405
["timestamp","ask_amount","ask_price","bid_price","bid_amount"]
[1743819006532,4.2455,1818.3,1818.1,0.77032]
[1743819006734,4.2455,1818.3,1818.2,3.77738]
[1743819007132,3.505,1818.4,1818.3,0.77024]
[1743819007438,3.505,1818.4,1818.3,2.28124]
[1743819009636,2.19927,1818.5,1818.3,2.28124]
[1743819009837,1.4291,1818.5,1818.4,1.511]
[1743819010240,2.19925,1818.5,1818.4,1.511]
[1743819010838,2.94235,1818.5,1818.4,2.2812]
[1743819011040,2.1722,1818.5,1818.4,2.2812]
[1743819012439,3.21604516,1818.6,1818.5,0.77015]
[1743819012643,3.21604516,1818.6,1818.5,3.70435]
[1743819016642,4.62544516,1818.6,1818.5,3.70435]
[1743819017946,3.21604516,1818.6,1818.5,3.70435]
[1743819019145,4.70424516,1818.6,1818.5,3.70435]
[1743819020449,4.70424516,1818.6,1818.5,2.98375]
[1743819020942,3.21604516,1818.6,1818.5,2.98375]
[1743819022052,0.00824516,1818.6,1818.5,2.98375]
[1743819022841,0.00824516,1818.6,1818.5,8.69155]
[1743819023047,5.67954,1819.0,1818.8,0.77]
[1743819023244,1.4056,1818.9,1818.8,0.77]
[1743819023847,1.4056,1818.9,1818.8,1.4804]
[1743819025151,3.51224516,1819.0,1818.9,0.76998]
[1743819025352,3.51224516,1819.0,1818.9,2.19018]
[1743819025751,5.02234516,1819.0,1818.9,2.19018]
[1743819026746,0.00824516,1819.0,1818.9,2.19018]
[1743819026946,0.00824516,1819.0,1818.9,2.89698]
[1743819045959,0.75014516,1819.0,1818.9,2.89698]
[1743819046757,0.00824516,1819.0,1818.9,2.89698]
[1743819047355,0.00824516,1819.0,1818.9,3.66356603]
[1743819049456,0.00824516,1819.0,1818.9,2.89698]
[1743819051262,0.00824516,1819.0,1818.9,3.66443743]
[1743819052861,0.00824516,1819.0,1818.9,2.89698]
[1743819053364,0.00824516,1819.0,1818.9,3.66484876]
[1743819054461,0.00824516,1819.0,1818.8,3.2078]
[1743819054660,0.76998,1818.9,1818.7,0.00824516]
[1743819054860,2.2409,1818.8,1818.7,0.77829516]
[1743819055168,2.9538,1818.8,1818.7,0.77829516]
[1743819057371,3.72383,1818.8,1818.7,0.00824516]
[1743819058067,2.9538,1818.8,1818.7,0.00824516]
[1743819059669,3.72383,1818.8,1818.7,0.00824516]
[1743819062067,6.22383,1818.8,1818.7,0.00824516]
[1743819062273,5.4538,1818.8,1818.3,0.7262]
[1743819062467,8.9138,1818.7,1818.5,0.77014]
[1743819062665,2.20301,1818.6,1818.5,0.77014]
[1743819063778,2.20301,1818.6,1818.4,2.29390516]
[1743819063971,2.1991,1818.5,1818.4,2.29390516]
[1743819071876,2.96925,1818.5,1818.4,2.29390516]
[1743819072174,2.96925,1818.5,1818.4,0.00824516]
[1743819072881,2.1991,1818.5,1818.4,0.77844516]
[1743819073274,2.8923,1818.5,1818.4,0.77844516]
[1743819076275,2.8923,1818.5,1818.4,2.28194516]
[1743819076680,3.66245,1818.5,1818.4,2.28194516]
[1743819077284,7.4809,1818.7,1818.5,0.77013]
[1743819077583,7.4809,1818.7,1818.5,2.97763]
[1743819077784,3.9779,1818.7,1818.5,2.97763]
[1743819077986,7.4819,1818.7,1818.6,0.77011]
[1743819078378,7.4819,1818.7,1818.5,1.47413]
[1743819078680,0.77011,1818.6,1818.5,0.704]
[1743819078879,2.20661,1818.6,1818.5,0.704]
[1743819079587,1.4365,1818.6,1818.5,1.47415]
[1743819080287,0.77015,1818.5,1818.4,0.00824516]
[1743819080476,1.49915,1818.5,1818.4,0.00824516]
[1743819080675,2.23865,1818.5,1818.4,0.00824516]
[1743819081687,5.44645,1818.5,1818.4,0.00824516]
[1743819082186,2.23865,1818.5,1818.4,0.00824516]
[1743819085487,3.69215,1818.5,1818.4,0.00824516]
[1743819087394,6.89995,1818.5,1818.4,0.00824516]
[1743819090494,6.89995,1818.5,1818.4,0.77844516]
[1743819091397,6.89995,1818.5,1818.4,0.00824516]
[1743819094403,3.69215,1818.5,1818.4,0.00824516]
[1743819094899,6.89995,1818.5,1818.4,0.00824516]
[1743819095096,6.1298,1818.5,1818.4,0.77844516]
[1743819095297,3.504,1818.7,1818.4,0.77844516]
[1743819095298,3.2078,1818.7,1818.6,0.77011]
[1743819095496,6.7118,1818.7,1818.6,0.77011]
[1743819095897,6.7118,1818.7,1818.6,2.22111]
[1743819096808,7.48187,1818.7,1818.6,2.22111]
[1743819097000,8.96937,1818.7,1818.6,1.451]
[1743819097608,8.96937,1818.7,1818.5,0.7261]
[1743819097609,0.77011,1818.6,1818.4,0.75804516]
[1743819097809,2.825,1818.6,1818.4,1.52823516]
[1743819098109,3.59514,1818.6,1818.4,1.52823516]
[1743819098411,5.37665,1818.5,1818.4,0.00824516]
[1743819099208,4.6065,1818.5,1818.4,0.77844516]
[1743819099402,4.6065,1818.5,1818.4,2.20084516]
[1743819099602,5.37665,1818.5,1818.4,2.91784516]
[1743819100002,4.6065,1818.5,1818.4,2.91784516]
[1743819101310,1.3987,1818.5,1818.4,2.91784516]
[1743819101912,2.16885,1818.5,1818.4,2.91784516]
[1743819103012,2.16885,1818.5,1818.4,2.20084516]
[1743819106520,2.16885,1818.5,1818.4,1.43064516]
[1743819107220,5.37665,1818.5,1818.4,1.43064516]
[1743819109423,5.37665,1818.5,1818.4,0.00824516]
[1743819114022,5.37665,1818.5,1818.4,0.77844516]
[1743819114023,3.504,1818.5,1818.4,0.77844516]
[1743819114725,3.504,1818.5,1818.4,2.93464516]
[1743819116224,1.48783,1818.6,1818.5,0.77015]
[1743819116417,4.99083,1818.6,1818.5,2.23975]
[1743819116919,4.27313,1818.6,1818.5,2.23975]
[1743819117325,4.27313,1818.6,1818.5,1.4696]
[1743819118624,3.503,1818.6,1818.5,2.23975]
[1743819118825,0.77822516,1819.0,1818.8,0.77002]
[1743819119019,4.273,1818.9,1818.7,0.77004]
[1743819119224,4.273,1818.9,1818.8,2.1922]
[1743819119727,5.7621,1818.9,1818.8,2.1922]
[1743819120128,8.9699,1818.9,1818.8,2.1922]
[1743819122135,8.9699,1818.9,1818.8,2.96223]
[1743819122332,3.2078,1818.9,1818.8,2.96223]
[1743819122833,3.51124516,1819.0,1818.9,0.76998]
[1743819123032,0.00824516,1819.0,1818.9,2.93218]
[1743819123537,6.7108,1819.3,1819.2,0.76986]
[1743819123735,3.2078,1819.3,1819.2,0.76986]
[1743819124438,3.2078,1819.3,1819.2,2.20306]
[1743819129339,0.00824516,1819.4,1819.3,0.76981]
[1743819129527,0.00824516,1819.4,1819.3,1.47631]
[1743819131234,3.2078,1819.7,1819.6,0.76966]
[1743819131540,4.27164,1819.8,1819.7,0.76964]
[1743819131739,3.502,1819.8,1819.7,0.76964]
[1743819132538,4.27162,1819.8,1819.6,0.00824516]
[1743819133037,4.27162,1819.8,1819.7,0.76964]
[1743819133339,3.502,1819.8,1819.7,3.00324]
[1743819133539,3.502,1819.8,1819.7,3.72024]
[1743819136738,8.85804516,1819.9,1819.8,0.7696]
[1743819136938,8.85804516,1819.9,1819.8,2.2276]
[1743819137133,5.35704516,1819.9,1819.8,2.2276]
[1743819137340,8.85804516,1819.9,1819.8,2.2276]
[1743819137541,7.45324516,1819.9,1819.8,2.2276]
[1743819138038,6.71704516,1819.9,1819.8,2.2276]
[1743819138745,3.50924516,1819.9,1819.8,2.2276]
[1743819142749,0.00824516,1819.9,1819.8,2.2276]
[1743819144941,1.50812,1820.3,1820.2,0.76943]
[1743819144942,3.501,1820.3,1820.2,0.76943]
[1743819145345,0.76938,1820.4,1820.2,0.76943]
[1743819145544,2.18418,1820.4,1820.3,1.5324]
[1743819145849,2.18418,1820.4,1820.3,3.02269]
[1743819146049,2.18418,1820.4,1820.3,2.2533]
[1743819146651,2.18418,1820.4,1820.3,3.02269]
[1743819146951,2.18418,1820.4,1820.3,2.2533]
[1743819147347,2.18418,1820.4,1820.3,1.5324]
[1743819149353,0.76939,1820.3,1820.2,0.76941]
[1743819149548,6.23179,1820.3,1820.1,0.76946]
[1743819149748,0.7605,1820.2,1820.1,0.76946]
[1743819150045,2.2465,1820.2,1820.1,0.76946]
[1743819150246,2.2465,1820.2,1820.1,2.24586]
[1743819151245,3.01593,1820.2,1820.1,2.24586]
[1743819151450,3.01596,1820.2,1819.7,11.05788]
[1743819151648,1.486,1820.1,1819.8,2.9302]
[1743819151950,1.486,1820.1,1820.0,0.76949]
[1743819152151,3.2078,1820.3,1819.9,1.5109]
[1743819152340,3.2078,1820.3,1820.2,0.76943]
[1743819153342,3.2078,1820.3,1820.2,2.28033]
[1743819154046,3.97691,1821.0,1820.4,0.76935]
[1743819154252,2.8588,1820.9,1820.8,0.76918]
[1743819155155,3.62794,1820.9,1820.8,0.76918]
[1743819155355,2.8588,1820.9,1820.8,0.76918]
[1743819155853,3.62794,1820.9,1820.7,0.77743516]
[1743819156052,1.5095,1820.8,1820.7,0.77743516]
[1743819159750,2.27868,1820.8,1820.7,0.00824516]
[1743819161958,11.48548,1820.8,1820.7,0.00824516]
[1743819162454,12.63934,1820.8,1820.1,1.46306]
[1743819162653,0.76943,1820.3,1820.0,2.19689]
[1743819162856,3.013,1820.2,1820.1,0.76948]
[1743819163161,0.76948,1820.1,1819.9,3.97733]
[1743819163359,2.30198,1820.1,1819.9,3.97733]
[1743819163760,1.5325,1820.0,1819.9,5.40473]
[1743819169070,1.5325,1820.0,1819.9,2.19693]
[1743819178467,2.30202,1820.0,1819.9,1.4274]
[1743819178666,2.30205,1820.0,1819.8,1.47143516]
[1743819179057,2.30205,1820.0,1819.8,2.96533516]
[1743819179261,1.4188,1819.9,1819.8,2.96533516]
[1743819180964,0.76955,1820.0,1819.9,0.76956]
[1743819181170,0.76955,1820.0,1819.9,2.17986]
[1743819183570,5.69655516,1820.1,1819.9,2.17986]
[1743819183772,5.69655516,1820.1,1820.0,1.4046]
[1743819184466,5.69655516,1820.1,1820.0,2.1087]
[1743819184668,4.92704516,1820.1,1820.0,2.87822]
[1743819184870,3.50824516,1820.1,1820.0,2.87822]
[1743819185772,4.27772516,1820.1,1820.0,2.1087]
[1743819186471,3.50824516,1820.1,1820.0,2.87822]
[1743819186672,4.27772516,1820.1,1820.0,2.1087]
[1743819188472,3.50824516,1820.1,1820.0,2.87822]
[1743819188671,4.27772516,1820.1,1820.0,2.87822]
[1743819189769,0.00824516,1820.1,1820.0,2.87822]
[1743819192470,0.00824516,1820.1,1820.0,3.64626914]
[1743819192674,0.00824516,1820.1,1820.0,2.87822]
[1743819196471,6.00824516,1820.1,1819.8,0.00824516]
[1743819196672,2.92654,1820.0,1819.8,0.77783516]
[1743819196870,2.1659,1819.9,1819.8,0.77783516]
[1743819197279,4.6659,1819.9,1819.8,0.77783516]
[1743819197680,2.1659,1819.9,1819.8,0.77783516]
[1743819198678,0.7181,1820.0,1819.9,0.76956]
[1743819198979,0.7181,1820.0,1819.9,2.16786]
[1743819199175,2.2141,1820.0,1819.9,2.16786]
[1743819199484,3.50824516,1820.1,1820.0,0.76952]
[1743819199676,3.50824516,1820.1,1820.0,3.59252]
[1743819204583,4.27772516,1820.1,1820.0,1.3983]
[1743819204782,6.36182516,1820.1,1820.0,1.3983]
[1743819204982,5.59234516,1820.1,1820.0,1.3983]
[1743819205284,5.59234516,1820.1,1820.0,2.16782]
[1743819205682,6.36182516,1820.1,1820.0,1.3983]
[1743819206080,0.76952,1820.0,1819.9,0.76953]
[1743819206280,2.1561,1820.0,1819.9,0.76953]
[1743819206481,2.1561,1820.0,1819.9,2.26853]
[1743819206980,2.92562,1820.0,1819.9,1.499]
[1743819207184,2.92562,1820.0,1819.8,2.23822516]
[1743819207482,1.5106,1819.9,1819.8,2.23822516]
[1743819207878,2.28016,1819.9,1819.8,0.77782516]
[1743819208780,2.28016,1819.9,1819.8,0.00824516]
[1743819210685,2.28016,1819.9,1819.8,1.40884516]
[1743819211088,1.5106,1819.9,1819.8,2.17844516]
[1743819211291,3.5,1820.0,1819.9,0.76956]
[1743819211490,4.20034516,1820.1,1820.0,0.76952]
[1743819211784,5.69334516,1820.1,1820.0,0.76952]
[1743819211990,5.69334516,1820.1,1820.0,2.17012]
[1743819215190,3.50824516,1820.1,1820.0,2.17012]
[1743819216094,4.27772516,1820.1,1820.0,1.4006]
[1743819216282,5.74832516,1820.1,1820.0,1.4006]
[1743819216693,0.76952,1820.0,1819.9,0.76953]
[1743819216899,2.94652,1820.0,1819.8,2.22801516]
[1743819217499,1.4706,1819.9,1819.8,2.22801516]
[1743819220800,1.4706,1819.9,1819.8,0.77781516]
[1743819221005,2.2062,1819.9,1819.8,0.77781516]
[1743819221501,2.97576,1819.9,1819.8,0.00824516]
[1743819222705,2.97576,1819.9,1819.8,0.77784516]
[1743819224007,2.97576,1819.9,1819.8,0.00824516]
[1743819224209,2.97576,1819.9,1819.8,0.77784516]
[1743819224708,2.97576,1819.9,1819.8,0.00824516]
[1743819238011,0.76969,1819.6,1819.5,0.7424]
[1743819238216,0.76973,1819.5,1819.3,1.53778]
[1743819238414,1.4823,1819.5,1819.3,1.53778]
[1743819238616,2.96207,1819.5,1819.3,1.53778]
[1743819239416,0.76977,1819.4,1819.3,0.768]
[1743819239612,2.25207,1819.4,1819.3,2.3031]
[1743819242222,1.4823,1819.4,1819.3,3.07291]
[1743819243618,4.68756,1819.5,1819.3,3.07291]
[1743819243818,6.21926,1819.5,1819.4,1.4918]
[1743819244225,3.2078,1819.7,1819.4,1.4918]
[1743819244415,0.76962,1819.8,1819.6,0.76966]
[1743819244619,3.5,1819.8,1819.7,2.2554]
[1743819244817,3.5,1819.8,1819.7,3.02504]
[1743819249127,4.2696,1819.8,1819.7,2.2554]
[1743819249630,4.2696,1819.8,1819.7,1.4918]
[1743819250126,5.688,1819.8,1819.7,1.4918]
[1743819251615,6.4254,1819.8,1819.7,1.4918]
[1743819253929,9.6332,1819.8,1819.7,1.4918]
[1743819257535,8.8636,1819.8,1819.5,1.4795]
[1743819257727,0.76969,1819.6,1819.5,1.4795]
[1743819258024,0.76969,1819.6,1819.5,2.8721]
[1743819258832,0.6971,1819.6,1819.3,3.9361]
[1743819259034,0.76977,1819.4,1819.3,6.84771]
[1743819259526,5.67025,1819.5,1819.3,6.84771]
[1743819259730,5.67025,1819.5,1819.4,1.4126]
[1743819262737,0.76981,1819.3,1819.2,3.21604516]
[1743819263537,2.23271,1819.3,1819.2,4.70644516]
[1743819264033,2.23271,1819.3,1819.2,1.49864516]
[1743819264234,2.98221,1819.3,1819.2,0.00824516]
[1743819264836,1.92466,1819.2,1818.6,3.97789]
[1743819265040,0.76996,1819.0,1818.8,0.77002]
[1743819265235,0.76996,1819.0,1818.9,1.4776]
[1743819265431,2.26006,1819.0,1818.9,1.4776]
[1743819268035,0.76998,1818.9,1818.8,0.00824516]
[1743819268335,0.77015,1818.5,1818.4,0.7553]
[1743819268538,3.501,1818.5,1818.2,2.9413]
[1743819268738,2.28741,1818.4,1818.2,3.71157]
[1743819268938,0.77024,1818.3,1818.2,2.9413]
[1743819269141,2.28744,1818.3,1818.2,2.9413]
[1743819269642,5.49524,1818.3,1818.2,2.186]
[1743819270742,0.77028,1818.2,1818.1,0.00824516]
[1743819270941,5.75228,1818.2,1818.1,0.00824516]
[1743819275043,5.79548989,1818.2,1818.1,0.00824516]
[1743819275943,5.82756633,1818.2,1818.1,0.00824516]
[1743819279241,5.82756633,1818.2,1818.1,3.27856516]
[1743819279242,0.07528633,1818.2,1818.1,3.27856516]
[1743819279441,0.07528633,1818.2,1818.1,4.70206516]
[1743819280238,3.57928633,1818.2,1818.1,0.00824516]
[1743819280440,4.34956633,1818.2,1818.1,0.00824516]
[1743819280636,5.75556633,1818.2,1818.1,0.00824516]
[1743819280832,6.46986633,1818.2,1818.1,0.00824516]
[1743819282244,3.57928633,1818.2,1818.1,0.00824516]
[1743819282540,3.57928633,1818.2,1818.1,2.19936516]
[1743819282741,3.58628633,1818.2,1818.1,2.19936516]
[1743819283142,4.35656633,1818.2,1818.1,1.42904516]
[1743819284237,5.80226633,1818.2,1818.1,1.42904516]
[1743819284837,5.03198633,1818.2,1818.1,2.19936516]
[1743819285745,5.80226633,1818.2,1818.1,2.19936516]
[1743819286941,5.80226633,1818.2,1818.1,1.42904516]
[1743819287648,3.58628633,1818.2,1818.1,2.19936516]
[1743819288648,4.35656633,1818.2,1818.1,2.19936516]
[1743819288849,4.35656633,1818.2,1818.1,1.42904516]
[1743819289146,5.81916633,1818.2,1818.1,1.42904516]
[1743819292142,6.52046633,1818.2,1818.1,1.42904516]
[1743819294448,6.52046633,1818.2,1818.1,0.00824516]
[1743819295748,0.77041,1817.9,1817.8,1.4708]
[1743819295946,4.27641,1817.9,1817.8,1.4708]
[1743819296250,4.35169633,1817.9,1817.8,1.4708]
[1743819296452,5.82489633,1817.9,1817.8,1.4708]
[1743819298155,3.58128633,1817.9,1817.8,2.24125]
[1743819298747,3.58128633,1817.9,1817.8,3.00952091]
[1743819300348,3.57928633,1817.9,1817.8,3.00952091]
[1743819305960,3.57928633,1817.9,1817.8,3.00952609]
[1743819307257,0.07528633,1817.9,1817.8,6.21732609]
[1743819307463,0.00824516,1818.0,1817.9,0.77041]
[1743819307666,3.504,1818.3,1818.2,0.77028]
[1743819308158,3.2078,1818.5,1818.0,5.4546]
[1743819308457,1.4569,1818.7,1818.6,0.77011]
[1743819308458,3.2078,1818.7,1818.6,0.77011]
[1743819309460,3.2078,1818.7,1818.5,2.31446516]
[1743819309657,2.21491,1818.6,1818.5,0.00824516]
[1743819309861,2.97441,1818.6,1818.5,0.00824516]
[1743819317965,6.18221,1818.6,1818.5,0.00824516]
[1743819318662,0.77034,1818.1,1817.9,0.77039]
[1743819318864,3.514,1818.0,1817.9,2.92329]
[1743819321569,4.28436,1818.0,1817.9,2.1529]
[1743819322071,4.9037,1818.0,1817.8,0.77044]
[1743819322369,5.67409,1818.0,1817.8,0.77044]
[1743819322569,5.67409,1818.0,1817.9,1.4919]
[1743819323070,5.67409,1818.0,1817.9,2.26231]
[1743819323071,4.9037,1818.0,1817.9,2.26231]
[1743819323272,4.28436,1818.0,1817.9,1.4919]
[1743819323670,4.28436,1818.0,1817.9,2.2299]
[1743819324573,4.28436,1818.0,1817.9,3.00031]
[1743819325065,0.77036,1818.0,1817.9,3.00031]
[1743819325269,3.2078,1818.4,1817.9,5.49692793]
[1743819325465,3.2078,1818.4,1818.3,0.77024]
[1743819326673,3.2078,1818.4,1818.3,2.15524]
[1743819327774,3.513,1818.5,1818.4,0.7702]
[1743819327971,3.513,1818.5,1818.4,2.9226]
[1743819328868,4.28315,1818.5,1818.4,1.385]
[1743819329062,6.39485,1818.5,1818.4,1.385]
[1743819329982,5.6247,1818.5,1818.2,0.7448]
[1743819330183,2.15573,1818.4,1818.2,1.51506]
[1743819330383,1.3855,1818.4,1818.3,0.77024]
[1743819330576,1.3855,1818.4,1818.3,2.21184]
[1743819330776,2.1557,1818.4,1818.3,1.4416]
[1743819330978,2.1557,1818.4,1818.2,1.51505]
[1743819331276,5.00938,1818.5,1818.3,0.77024]
[1743819331477,6.39488,1818.5,1818.3,2.21184]
[1743819331678,1.4852,1818.4,1818.3,2.21184]
[1743819332987,5.01835,1818.5,1818.3,2.94751]
[1743819333286,6.50355,1818.5,1818.4,1.4069]
[1743819340093,5.77735,1818.5,1818.4,1.4069]
[1743819340795,5.77735,1818.5,1818.4,2.1771]
[1743819340992,5.0072,1818.5,1818.4,2.1771]
[1743819341187,3.522,1818.5,1818.4,2.1771]
[1743819341994,4.29215,1818.5,1818.4,1.4069]
[1743819342291,4.29215,1818.5,1818.4,2.1771]
[1743819342898,6.25713,1818.6,1818.4,2.1771]
[1743819343093,3.97791,1818.6,1818.5,1.432]
[1743819343394,7.49191,1818.6,1818.5,1.432]
[1743819343993,8.2563,1818.6,1818.3,1.50592]
[1743819344189,1.5345,1818.5,1818.3,2.92232]
[1743819344691,0.7702,1818.4,1818.3,2.1521]
[1743819344989,0.77017,1818.5,1818.3,2.1521]
[1743819345199,4.28217,1818.5,1818.4,1.4164]
[1743819347306,4.28217,1818.5,1818.4,2.1866]
[1743819347508,3.512,1818.5,1818.4,2.1866]
[1743819348196,9.02544,1818.6,1818.4,1.4164]
[1743819348402,9.02544,1818.6,1818.5,2.1677]
[1743819349897,5.81764,1818.6,1818.5,2.1677]
[1743819354403,9.02544,1818.6,1818.5,2.1677]
[1743819354603,9.02544,1818.6,1818.5,0.7414]
[1743819357302,0.7702,1818.4,1818.3,1.5059]
[1743819357703,0.7702,1818.4,1818.3,3.0271]
[1743819359103,2.24879,1818.5,1818.3,3.0271]
[1743819359304,2.24879,1818.5,1818.4,1.4541]
[1743819360001,2.24879,1818.5,1818.1,3.2078]
[1743819360002,0.77028,1818.2,1818.1,3.2078]
[1743819360304,0.77032,1818.1,1818.0,2.1844]
[1743819360504,0.77036,1818.0,1817.9,0.7011]
[1743819360704,0.77036,1818.0,1817.9,1.47002571]
[1743819361105,0.77041,1817.9,1817.8,1.4541]
[1743819361308,4.28241,1817.9,1817.8,1.4541]
[1743819361706,3.512,1817.9,1817.8,2.22455]
[1743819361908,4.28241,1817.9,1817.8,1.4541]
[1743819362203,5.80091,1817.9,1817.8,1.4541]
[1743819363020,0.77045,1817.8,1817.7,1.4926]
[1743819363211,2.28895,1817.8,1817.7,1.4926]
[1743819363509,2.28895,1817.8,1817.7,0.7303]
[1743819364598,2.28895,1817.8,1817.7,1.50079]
[1743819364802,2.28895,1817.8,1817.7,0.7303]
[1743819365003,1.5185,1817.8,1817.7,2.93809]
[1743819365507,3.512,1817.9,1817.7,2.93806]
[1743819365508,4.28242,1817.9,1817.7,2.93806]
[1743819365708,4.28242,1817.9,1817.8,1.4516]
[1743819367007,3.512,1817.9,1817.8,2.98625]
[1743819369909,4.28241,1817.9,1817.8,2.2158]
[1743819370109,0.77045,1817.8,1817.7,0.7303]
[1743819370406,2.17375,1817.8,1817.7,0.7303]
[1743819370710,2.86685,1817.8,1817.7,0.7303]
[1743819370914,3.60835,1817.8,1817.7,0.7303]
[1743819371410,3.60835,1817.8,1817.6,2.20273]
[1743819371712,1.3849,1817.7,1817.6,2.20273]
[1743819372314,2.15539,1817.7,1817.6,1.4322]
[1743819373406,1.3849,1817.7,1817.6,1.4322]
[1743819373607,1.3849,1817.7,1817.6,2.20273]
[1743819373813,1.4346,1817.8,1817.7,0.77049]
[1743819374110,0.6931,1817.8,1817.7,2.15809]
[1743819374613,1.46355,1817.8,1817.7,1.3876]
[1743819375114,2.2157,1817.8,1817.7,2.15809]
[1743819375613,4.29069516,1817.9,1817.7,2.15809]
[1743819375805,4.29069516,1817.9,1817.8,2.1164]
[1743819376005,5.81329516,1817.9,1817.8,2.1164]
[1743819376206,5.81329516,1817.9,1817.8,1.422]
[1743819379615,0.77049,1817.7,1817.6,0.6944]
[1743819379913,0.77049,1817.7,1817.6,2.1105]
[1743819380513,0.77049,1817.7,1817.6,2.88103]
[1743819382920,3.00727,1817.8,1817.6,2.88103]
[1743819383117,3.00727,1817.8,1817.7,1.4462]
[1743819384815,0.77049,1817.7,1817.6,1.46493]
[1743819385015,3.00728,1817.8,1817.6,2.1463]
[1743819385211,3.00728,1817.8,1817.6,2.91681]
[1743819385414,3.00728,1817.8,1817.7,1.4519]
[1743819387725,2.2368,1817.8,1817.7,2.22239]
[1743819388022,3.00725,1817.8,1817.7,1.4519]
[1743819389524,0.00824516,1817.9,1817.8,0.77045]
[1743819389821,3.51924516,1817.9,1817.8,1.53095]
[1743819391227,2.2074,1818.3,1818.2,0.77028]
[1743819391524,3.513,1818.4,1818.3,0.77024]
[1743819392223,0.77018,1818.5,1818.3,0.77024]
[1743819392430,4.29242516,1818.5,1818.4,1.503]
[1743819393426,3.52224516,1818.5,1818.4,1.503]
[1743819393626,0.00824516,1818.5,1818.4,2.2732]
[1743819394625,0.77839516,1818.5,1818.4,1.503]
[1743819395129,0.00824516,1818.5,1818.4,1.503]
[1743819396128,1.49584516,1818.5,1818.4,1.503]
[1743819397325,1.49584516,1818.5,1818.4,2.2732]
[1743819397724,1.49584516,1818.5,1818.4,1.503]
[1743819397925,2.26599516,1818.5,1818.4,1.503]
[1743819398126,3.00239516,1818.5,1818.2,0.77851516]
[1743819398327,2.1956,1818.4,1818.2,1.47531516]
[1743819398526,5.7086,1818.4,1818.2,1.47531516]
[1743819399022,5.7086,1818.4,1818.3,0.77024]
[1743819400226,6.4788,1818.4,1818.2,1.47529516]
[1743819400539,6.4788,1818.4,1818.2,0.00824516]
[1743819400540,2.28104,1818.3,1818.2,0.00824516]
[1743819402238,5.48884,1818.3,1818.2,0.00824516]
[1743819405427,0.7704,1818.0,1817.8,3.2078]
[1743819405736,4.28641,1817.9,1817.8,3.2078]
[1743819405935,4.28541,1817.9,1817.8,4.6597]
[1743819406533,3.515,1817.9,1817.8,4.6597]
[1743819406735,4.28541,1817.9,1817.8,4.6597]
[1743819407538,3.515,1817.9,1817.8,4.6597]
[1743819408439,3.515,1817.9,1817.8,5.43015]
[1743819409637,0.7704,1818.0,1817.8,5.43015]
[1743819409844,3.514,1818.0,1817.9,2.2481]
[1743819413236,1.5143,1818.2,1817.9,1.4777]
[1743819413443,3.514,1818.1,1818.0,2.91674]
[1743819413745,3.514,1818.1,1818.0,1.49994]
[1743819416343,4.72209,1818.2,1818.0,1.49994]
[1743819416344,4.72209,1818.2,1818.1,0.77032]
[1743819416544,4.72209,1818.2,1818.1,0.7492]
[1743819416545,8.23309,1818.2,1818.1,0.7492]
[1743819417235,7.4628,1818.2,1818.1,0.7492]
[1743819417438,7.4628,1818.2,1818.1,1.51952]
[1743819417649,8.23308,1818.2,1818.1,0.7492]
[1743819418743,7.4628,1818.2,1818.1,0.7492]
[1743819419043,8.23308,1818.2,1818.1,0.7492]
[1743819419338,7.4628,1818.2,1818.1,0.7492]
[1743819419846,8.8795,1818.2,1818.1,1.51952]
[1743819420548,9.64978,1818.2,1818.1,0.7492]
[1743819421045,8.8795,1818.2,1818.1,1.51952]
[1743819421546,9.64978,1818.2,1818.1,0.7492]
[1743819422142,8.8795,1818.2,1818.1,1.51952]
[1743819422540,3.9253,1818.4,1818.2,0.77028]
[1743819422739,3.506,1818.3,1818.2,0.77028]
[1743819423038,4.27624,1818.3,1818.2,0.77028]
[1743819423445,3.506,1818.3,1818.2,0.77028]
[1743819423745,3.506,1818.3,1818.1,1.5195]
[1743819423746,4.27624,1818.3,1818.1,1.5195]
[1743819423942,4.27624,1818.3,1818.2,1.4867]
[1743819424247,5.77484,1818.3,1818.2,1.4867]
[1743819425547,5.0046,1818.3,1818.2,2.25698]
[1743819426447,1.4986,1818.3,1818.2,2.25698]
[1743819426649,5.0066,1818.3,1818.2,2.25698]
[1743819426848,3.508,1818.3,1818.2,2.25698]
[1743819427645,1.47644516,1818.5,1818.4,0.7702]
[1743819427851,3.51524516,1818.5,1818.4,0.7702]
[1743819428049,0.00824516,1818.5,1818.4,0.7702]
[1743819428346,0.00824516,1818.5,1818.4,5.3908]
[1743819428547,0.00824516,1818.5,1818.4,6.15822153]
[1743819429250,0.00824516,1818.5,1818.4,3.65822153]
[1743819429548,0.00824516,1818.5,1818.4,2.8908]
[1743819439353,0.00824516,1818.5,1818.4,6.0986]
[1743819445057,0.77839516,1818.5,1818.4,3.2078]
[1743819445260,4.28939516,1818.5,1818.3,0.77021]
[1743819445451,0.77024,1818.3,1818.2,6.69625]
[1743819445657,0.77028,1818.2,1818.0,0.77035]
[1743819445955,0.7411,1818.1,1818.0,0.77035]
[1743819446161,2.1483,1818.1,1818.0,0.77035]
[1743819446951,0.77038,1818.0,1817.8,2.27722]
[1743819447155,2.1423,1818.0,1817.9,0.77041]
[1743819454665,2.91269,1818.0,1817.8,2.27722]
[1743819454861,0.77045,1817.8,1817.6,0.77051]
[1743819455167,1.3954,1817.7,1817.6,0.77051]
[1743819458664,1.3954,1817.7,1817.5,3.2078]
[1743819458867,4.2615,1817.6,1817.2,2.1954]
[1743819459169,2.28758,1817.5,1817.3,2.24753]
[1743819459365,1.517,1817.4,1817.3,2.24753]
[1743819460470,1.517,1817.4,1817.3,0.77063]
[1743819463371,1.517,1817.4,1817.3,2.24043]